bitfinex/quotes_ETHUSD_20240717
["timestamp","ask_amount","ask_price","bid_price","bid_amount"]
[1721200550712,2.85992,3496.6,3495.8,2.451]
[1721200550713,2.86001,3496.5,3495.8,2.451]
[1721200551016,2.86025,3496.2,3495.5,2.2895]
[1721200551216,2.86038,3496.1,3495.6,4.0]
[1721200551522,3.432437,3496.1,3495.6,4.0]
[1721200551690,2.4605,3496.7,3495.6,4.0]
[1721200551691,2.85968,3496.9,3495.9,2.86049]
[1721200552020,2.85989,3496.7,3495.9,2.86049]
[1721200552181,2.85989,3496.7,3495.9,5.26349]
[1721200552516,2.85968,3496.9,3496.0,2.8604]
[1721200552695,5.85977,3496.8,3496.0,2.8604]
[1721200552887,2.85984,3496.7,3496.0,2.8604]
[1721200554701,2.85984,3496.7,3496.1,2.4022]
[1721200555336,3.871945,3496.8,3496.1,2.4022]
[1721200555548,3.0,3496.8,3496.1,2.4022]
[1721200556019,4.03725096,3497.3,3496.4,2.86006]
[1721200556226,5.85943,3497.2,3496.4,2.86006]
[1721200556428,2.85951,3497.1,3496.4,2.86006]
[1721200556962,2.85951,3497.1,3496.3,2.86008]
[1721200557259,0.585951,3497.0,3496.5,0.06675289]
[1721200557419,0.585951,3497.0,3496.3,2.86008]
[1721200557420,0.585951,3497.0,3496.4,0.06680875]
[1721200557850,0.585951,3497.0,3496.4,2.92687875]
[1721200558052,0.585951,3497.0,3496.4,0.06680875]
[1721200559186,2.85989,3496.7,3496.4,0.06680875]
[1721200559342,2.85989,3496.7,3496.1,2.4022]
[1721200559544,2.85989,3496.7,3496.5,0.06677376]
[1721200559849,2.85989,3496.7,3496.6,0.0667179]
[1721200560174,2.85989,3496.7,3496.1,2.4022]
[1721200560346,2.85989,3496.7,3496.6,0.0667179]
[1721200560559,2.85989,3496.7,3496.1,2.4022]
[1721200561253,0.571961,3496.7,3496.2,0.06694133]
[1721200561441,2.86009,3496.4,3495.8,9.7604]
[1721200561637,2.86009,3496.4,3495.9,0.06710893]
[1721200561883,2.86,3496.5,3495.9,0.06710893]
[1721200562747,2.85985,3496.7,3496.0,2.8604]
[1721200563087,2.85992,3496.6,3496.0,2.92747392]
[1721200563991,2.85992,3496.6,3496.0,0.06707392]
[1721200564489,2.85992,3496.6,3496.1,0.06701805]
[1721200564490,3.431888,3496.6,3496.1,0.06701805]
[1721200564690,3.431888,3496.6,3495.8,2.3804]
[1721200564846,2.86021,3496.3,3495.5,5.35109]
[1721200565041,2.86021,3496.3,3495.5,2.4903]
[1721200565468,2.86021,3496.3,3495.6,2.92802742]
[1721200566174,2.86026,3496.2,3495.6,2.92802742]
[1721200567170,2.86042,3496.0,3495.6,0.06729742]
[1721200567345,2.8606,3495.8,3495.6,0.06729742]
[1721200567551,2.8606,3495.8,3495.2,7.38]
[1721200567552,2.86033,3496.1,3495.2,10.24105]
[1721200567758,2.86033,3496.1,3495.7,0.06724154]
[1721200567956,2.86033,3496.1,3495.4,2.86088]
[1721200568167,2.86033,3496.1,3495.8,0.06718567]
[1721200568482,2.86033,3496.1,3495.9,0.06712979]
[1721200568875,2.86025,3496.2,3496.0,0.06707392]
[1721200569192,2.86033,3496.1,3495.4,2.4672]
[1721200569495,2.86033,3496.1,3495.4,5.32809]
[1721200569496,2.86042,3496.0,3495.4,5.32809]
[1721200569692,2.86061,3495.8,3495.2,7.38]
[1721200570355,2.86069,3495.7,3495.2,7.38]
[1721200570552,2.86075,3495.6,3494.6,7.82840218]
[1721200570757,2.86082,3495.5,3494.8,6.86138]
[1721200571285,2.86082,3495.5,3494.9,2.8613]
[1721200571493,2.86069,3495.7,3494.9,2.8613]
[1721200571882,2.86074,3495.6,3494.9,2.8613]
[1721200572055,2.86074,3495.6,3495.0,0.06771291]
[1721200572584,2.86074,3495.6,3495.0,2.92893291]
[1721200573089,2.86074,3495.6,3495.1,2.4579]
[1721200573292,2.86063,3495.8,3495.1,2.52564298]
[1721200573599,2.86063,3495.8,3495.1,5.38676298]
[1721200575384,2.86095,3495.4,3495.1,0.06774298]
[1721200575565,2.86074,3495.6,3495.1,0.06774298]
[1721200575771,2.86051,3495.9,3495.0,2.86121]
[1721200575970,2.86066,3495.7,3495.2,0.06768375]
[1721200576173,2.86051,3495.9,3494.9,2.86123]
[1721200576360,2.86051,3495.9,3495.3,2.32492785]
[1721200576563,8.793548,3496.6,3495.5,2.8608]
[1721200576799,2.86015,3496.4,3495.5,2.8608]
[1721200577000,2.85986,3496.7,3495.8,2.86051]
[1721200577303,2.85978,3496.8,3495.8,2.86051]
[1721200577304,2.85993,3496.6,3495.9,0.06729089]
[1721200577785,2.3058,3496.9,3495.9,0.06729089]
[1721200577786,2.3058,3497.3,3496.1,2.86027]
[1721200577959,2.3058,3497.3,3496.2,2.403]
[1721200578160,2.85972,3496.9,3496.2,2.47008405]
[1721200578358,2.8596,3497.0,3496.2,2.47008405]
[1721200578999,2.8597,3496.9,3496.2,2.47008405]
[1721200579206,2.85976,3496.8,3496.2,2.47008405]
[1721200579363,2.85969,3496.9,3496.2,2.47008405]
[1721200579569,0.571929,3496.8,3496.2,5.33031405]
[1721200579818,2.85969,3496.9,3496.2,5.33031405]
[1721200580119,2.85969,3496.9,3496.2,2.47008405]
[1721200580410,2.85969,3496.9,3496.2,0.06708405]
[1721200580411,2.85967,3496.9,3496.2,0.06708405]
[1721200580613,2.86,3496.5,3496.2,0.06708405]
[1721200580768,2.85992,3496.6,3496.0,2.4354]
[1721200580965,2.85992,3496.6,3496.3,0.06699313]
[1721200581424,2.85992,3496.6,3496.0,2.4354]
[1721200581590,2.85992,3496.6,3496.4,0.06693727]
[1721200581782,2.85992,3496.6,3496.0,2.4354]
[1721200581988,2.85961,3497.0,3496.5,0.06688142]
[1721200582188,2.85961,3497.0,3496.2,2.86024]
[1721200582389,2.85961,3497.0,3496.6,0.06682557]
[1721200582620,3.375938,3497.2,3496.2,2.86024]
[1721200582621,2.85968,3496.9,3496.2,2.86024]
[1721200583132,2.85975,3496.8,3496.2,2.86024]
[1721200583336,2.85975,3496.8,3496.3,0.06699313]
[1721200583488,2.85975,3496.8,3496.2,2.86024]
[1721200583690,2.85975,3496.8,3496.4,0.06693727]
[1721200583930,2.85975,3496.8,3496.2,2.86024]
[1721200584143,2.85975,3496.8,3496.5,0.06688142]
[1721200584311,2.85975,3496.8,3496.2,2.86024]
[1721200584623,2.85975,3496.8,3496.6,0.06682557]
[1721200584819,2.85975,3496.8,3496.2,2.86024]
[1721200585308,2.85975,3496.8,3496.3,0.0669205]
[1721200585507,2.85975,3496.8,3496.2,2.86024]
[1721200585810,2.85968,3496.9,3496.4,0.06686464]
[1721200586008,2.85968,3496.9,3496.3,0.0669205]
[1721200586241,2.85959,3497.0,3496.2,2.86024]
[1721200586444,2.85977,3496.8,3496.2,2.86024]
[1721200586647,2.85977,3496.8,3496.3,0.0669205]
[1721200587018,2.85977,3496.8,3496.1,5.26332]
[1721200587233,2.85977,3496.8,3496.4,0.06686464]
[1721200587413,3.431706,3496.8,3496.0,2.4354]
[1721200587615,2.85992,3496.6,3496.5,0.06680879]
[1721200587840,2.85992,3496.6,3496.0,2.4354]
[1721200588014,2.85992,3496.6,3496.5,0.06680879]
[1721200588214,2.85992,3496.6,3496.0,2.4354]
[1721200588732,2.85992,3496.6,3496.1,0.06703806]
[1721200589450,2.86002,3496.5,3496.1,0.06703806]
[1721200594423,2.86017,3496.3,3496.1,0.06703806]
[1721200594831,2.86017,3496.3,3495.7,2.403]
[1721200595115,2.86017,3496.3,3496.2,0.06483332]
[1721200595348,2.86017,3496.3,3495.7,2.403]
[1721200595547,2.86017,3496.3,3495.8,0.0650568]
[1721200595752,2.86017,3496.3,3495.7,2.403]
[1721200595922,2.86017,3496.3,3495.8,0.06507684]
[1721200596126,2.86017,3496.3,3495.7,2.403]
[1721200596343,2.86017,3496.3,3495.8,0.06507684]
[1721200596735,2.86017,3496.3,3495.7,5.26365]
[1721200596957,2.86017,3496.3,3495.8,0.06507684]
[1721200597161,2.86017,3496.3,3495.7,5.26365]
[1721200597361,2.86017,3496.3,3495.9,0.06502097]
[1721200597534,2.86017,3496.3,3495.7,5.26365]
[1721200597720,2.86008,3496.4,3496.0,0.0649651]
[1721200598119,2.86008,3496.4,3495.7,5.26365]
[1721200598320,2.86008,3496.4,3495.8,0.06507684]
[1721200599139,2.85998,3496.6,3495.9,2.3958]
[1721200599342,2.85998,3496.6,3495.9,5.25628]
[1721200599565,2.85998,3496.6,3495.9,5.32130013]
[1721200599979,2.85984,3496.7,3495.9,5.32130013]
[1721200600667,2.85984,3496.7,3496.1,2.86032]
[1721200600965,2.85984,3496.7,3496.2,0.06484919]
[1721200603265,2.85975,3496.8,3496.3,2.3839]
[1721200603431,3.758895,3496.8,3496.3,2.3839]
[1721200603632,2.85975,3496.8,3496.4,0.06473664]
[1721200604033,2.85975,3496.8,3496.3,2.3839]
[1721200604281,2.85986,3496.7,3496.3,2.3839]
[1721200604464,2.85986,3496.7,3496.4,0.06473664]
[1721200604832,2.85986,3496.7,3496.0,5.28039]
[1721200605034,2.85986,3496.7,3496.5,0.06467911]
[1721200605261,2.85986,3496.7,3496.0,5.28039]
[1721200605435,2.85986,3496.7,3496.6,0.06462326]
[1721200605634,2.85986,3496.7,3496.0,5.28039]
[1721200605873,2.85975,3496.8,3496.6,0.06462326]
[1721200606079,2.85975,3496.8,3496.1,2.86031]
[1721200606234,2.85975,3496.8,3496.7,0.06455488]
[1721200606437,2.85975,3496.8,3496.1,2.86031]
[1721200606639,2.85975,3496.8,3496.7,0.06455488]
[1721200606840,2.85975,3496.8,3496.1,2.86031]
[1721200607446,3.758655,3497.1,3496.3,2.2658]
[1721200607758,4.0561277,3497.3,3496.5,5.26298]
[1721200607759,0.899145,3497.2,3496.5,5.26298]
[1721200607941,2.85934,3497.3,3496.6,0.06460572]
[1721200608444,3.758405,3497.4,3496.6,2.92450572]
[1721200608646,2.85936,3497.3,3496.6,2.92450572]
[1721200609363,2.85936,3497.3,3496.7,2.289]
[1721200609573,2.85936,3497.3,3496.8,0.06447733]
[1721200609771,2.85936,3497.3,3496.7,2.289]
[1721200609979,0.899145,3497.4,3496.8,0.06447566]
[1721200609980,2.85943,3497.2,3496.8,0.06447566]
[1721200610191,2.85943,3497.2,3496.7,2.289]
[1721200610350,2.85962,3497.0,3496.8,0.06446315]
[1721200610545,2.85962,3497.0,3496.4,2.289]
[1721200610756,2.85962,3497.0,3496.5,0.06463069]
[1721200611286,2.85953,3497.1,3496.5,0.06463069]
[1721200611581,2.85943,3497.2,3496.5,0.06463069]
[1721200611896,2.85968,3496.9,3496.5,0.06463069]
[1721200612755,2.85984,3496.7,3496.5,0.06463069]
[1721200612973,2.85992,3496.6,3495.8,2.3684]
[1721200613172,2.85992,3496.6,3495.9,0.06289423]
[1721200613879,2.85992,3496.6,3495.9,2.92337423]
[1721200614097,2.86,3496.5,3495.9,2.92337423]
[1721200617603,2.86033,3496.1,3495.9,0.06289423]
[1721200617965,2.86033,3496.1,3495.4,5.14479]
[1721200618167,2.86033,3496.1,3495.5,4.06316615]
[1721200618607,2.86033,3496.1,3495.5,0.06316615]
[1721200619608,3.759315,3496.3,3495.5,0.06316615]
[1721200619772,0.899145,3496.3,3495.5,0.06316615]
[1721200620102,6.038445,3496.4,3495.5,2.92396615]
[1721200620307,6.038445,3496.4,3495.5,0.06316615]
[1721200620308,0.899145,3496.3,3495.5,0.06316615]
[1721200620471,6.96915207,3496.4,3495.5,2.92397615]
[1721200620668,0.899145,3496.3,3495.5,2.92397615]
[1721200620873,6.96915207,3496.4,3495.5,2.92397615]
[1721200621327,6.96915207,3496.4,3495.6,2.86072]
[1721200621669,6.96915207,3496.4,3495.7,0.06308278]
[1721200621670,0.899145,3496.3,3495.7,0.06308278]
[1721200622210,0.899145,3496.3,3495.7,2.92370278]
[1721200623300,0.899145,3496.3,3495.8,2.86057]
[1721200623479,6.038445,3496.4,3495.8,2.86057]
[1721200623686,0.899145,3496.3,3495.9,0.06298606]
[1721200623878,2.11587925,3496.4,3495.9,0.06298606]
[1721200624089,0.899145,3496.3,3495.9,0.06298606]
[1721200624367,0.899145,3496.5,3496.0,2.4627]
[1721200624569,0.899145,3496.6,3496.4,2.86008]
[1721200624776,0.899145,3496.7,3496.5,0.06264921]
[1721200624990,0.899145,3496.7,3496.4,2.86008]
[1721200625229,0.899145,3496.7,3496.5,0.06263585]
[1721200625706,0.899145,3496.8,3496.5,0.06263585]
[1721200627788,3.759035,3496.7,3496.6,0.06256247]
[1721200627985,3.759035,3496.7,3496.0,2.86039]
[1721200627986,3.87070727,3496.7,3496.0,2.86039]
[1721200628177,0.90012951,3496.6,3496.1,0.06284176]
[1721200628378,0.90012951,3496.7,3496.3,2.86015]
[1721200628575,0.90012951,3496.7,3496.4,0.06267418]
[1721200629925,0.90012951,3496.8,3496.4,2.92274418]
[1721200630233,0.90012951,3496.8,3496.6,5.2079]
[1721200630515,0.90012951,3496.9,3496.7,0.06250662]
[1721200630920,0.90012951,3496.9,3496.6,5.2079]
[1721200631284,0.90012951,3496.9,3496.7,0.06250662]
[1721200631494,0.90012951,3496.9,3496.6,5.2079]
[1721200631701,0.90012951,3496.9,3496.7,0.06250662]
[1721200632003,0.90012951,3496.9,3496.7,2.92232662]
[1721200632202,0.90012951,3496.9,3496.7,0.06250662]
[1721200632449,1.10982123,3496.8,3496.4,2.86002]
[1721200632750,0.20969172,3496.8,3496.5,2.85999]
[1721200632938,1.10982123,3496.8,3496.5,2.85999]
[1721200633237,0.20969172,3496.8,3496.5,2.85999]
[1721200633427,0.90012951,3496.9,3496.5,2.85999]
[1721200634531,0.90012951,3497.0,3496.5,2.85999]
[1721200635181,0.90012951,3496.9,3496.5,2.85999]
[1721200635551,0.90012951,3496.9,3496.1,2.3073]
[1721200635749,2.85998,3496.6,3495.9,7.38]
[1721200635948,2.85998,3496.6,3496.0,4.0]
[1721200635949,1.92568023,3496.5,3496.0,4.0]
[1721200636286,1.92568023,3496.5,3495.9,10.24049]
[1721200638338,0.90012951,3496.5,3495.9,10.24049]
[1721200639571,0.90012951,3496.5,3495.4,3.0]
[1721200639572,0.90012951,3496.2,3495.3,7.38]
[1721200639778,0.90012951,3495.8,3495.2,2.86106]
[1721200639960,0.90012951,3495.8,3494.8,7.38]
[1721200639961,2.86083,3495.5,3494.8,7.38]
[1721200640164,0.90012951,3495.5,3494.9,4.0]
[1721200640361,2.2535,3495.5,3494.9,4.0]
[1721200640674,2.86106,3495.2,3494.5,2.86163]
[1721200640853,0.66221695,3495.1,3494.3,2.86174]
[1721200641046,0.66221695,3495.1,3494.6,0.06055437]
[1721200641047,1.56234646,3495.1,3494.6,0.06055437]
[1721200641362,1.56234646,3495.1,3494.7,0.06049846]
[1721200641565,1.56234646,3495.1,3494.5,2.86163]
[1721200641752,0.66221695,3495.1,3494.8,0.06044255]
[1721200641957,0.56201942,3495.0,3494.5,2.86163]
[1721200642203,0.56201942,3495.0,3494.9,0.06038665]
[1721200642487,2.86136,3494.9,3494.2,2.86187]
[1721200642693,0.56201942,3495.0,3494.2,2.86187]
[1721200642902,3.42324942,3495.0,3494.2,2.86187]
[1721200643254,3.42324942,3495.0,3494.3,2.86179]
[1721200643453,0.56201942,3495.0,3494.3,2.86179]
[1721200644717,3.42325942,3495.0,3494.3,2.86179]
[1721200645427,3.42325942,3495.0,3494.1,2.86191]
[1721200645428,2.86124,3495.0,3494.1,2.86191]
[1721200645718,2.86124,3495.0,3494.2,2.86188]
[1721200646492,2.86132,3494.9,3494.2,2.86188]
[1721200646719,2.4387,3494.8,3493.9,2.86212]
[1721200646928,2.86155,3494.6,3493.9,2.86212]
[1721200647225,2.86155,3494.6,3494.0,0.061168]
[1721200647528,0.530002,3494.7,3494.0,2.923198]
[1721200647854,2.8612,3495.1,3494.4,2.86172]
[1721200648585,2.8614,3494.8,3493.8,2.86218]
[1721200648785,2.86158,3494.6,3494.5,0.06088838]
[1721200648985,3.433878,3494.6,3493.9,2.86212]
[1721200649224,3.433878,3494.6,3494.5,0.06089841]
[1721200649419,3.433878,3494.6,3493.9,2.86212]
[1721200649626,3.433878,3494.6,3494.5,0.06089841]
[1721200649798,3.433878,3494.6,3493.9,2.86212]
[1721200650003,0.6295278,3494.5,3493.9,2.86212]
[1721200651391,2.8614,3494.8,3494.0,2.86204]
[1721200652019,2.3912,3495.2,3494.2,2.86187]
[1721200652221,5.25226,3495.2,3494.4,2.86171]
[1721200652435,2.86082,3495.5,3494.5,2.86163]
[1721200652583,0.523202,3495.4,3494.8,2.86139]
[1721200652922,2.86074,3495.6,3494.8,2.86139]
[1721200653926,3.0,3495.5,3494.8,2.86139]
[1721200654144,3.0,3495.5,3494.6,2.86154]
[1721200654145,3.0,3495.5,3494.9,2.8613]
[1721200654427,2.86067,3495.7,3495.0,2.86122]
[1721200654591,3.432795,3495.7,3495.0,2.86122]
[1721200654986,5.23153,3496.1,3495.1,2.86114]
[1721200655187,2.86022,3496.3,3495.6,2.86072]
[1721200655421,2.85989,3496.7,3495.6,2.86073]
[1721200655599,1.1967877,3497.0,3496.1,2.86031]
[1721200655600,2.8596,3497.0,3496.1,2.86031]
[1721200655804,2.85973,3496.9,3496.1,2.86031]
[1721200656047,3.667435,3496.8,3496.1,2.86031]
[1721200657035,3.0,3496.7,3496.1,2.86031]
[1721200659324,3.0,3496.7,3496.2,2.86023]
[1721200659503,0.807685,3496.8,3496.2,2.86023]
[1721200660026,0.807685,3496.8,3496.3,2.86016]
[1721200660229,3.0,3497.0,3496.3,2.86016]
[1721200661485,2.85935,3497.3,3496.3,2.86016]
[1721200661681,2.85935,3497.3,3496.5,2.85995]
[1721200661907,3.0,3497.2,3496.5,2.85995]
[1721200662108,3.0,3497.2,3496.3,2.86016]
[1721200662109,2.85962,3497.0,3496.3,2.86016]
[1721200662308,2.85962,3497.0,3496.6,0.05957283]
[1721200662309,0.871905,3496.9,3496.6,0.05957283]
[1721200662500,3.871905,3496.9,3496.1,2.86032]
[1721200662824,3.871905,3496.9,3496.0,2.8604]
[1721200662825,2.85977,3496.8,3496.0,2.8604]
[1721200663024,2.85985,3496.7,3496.1,0.05983041]
[1721200663612,2.85976,3496.8,3496.1,2.92015041]
[1721200663816,0.6731665,3496.7,3496.1,2.92015041]
[1721200664000,0.6731665,3496.7,3496.1,0.05983041]
[1721200664328,2.85992,3496.6,3495.9,2.86048]
[1721200664543,2.85992,3496.6,3496.2,0.05977455]
[1721200664707,0.6731665,3496.7,3496.0,2.86033]
[1721200664900,0.6731665,3496.7,3496.3,0.05971868]
[1721200665131,0.65329265,3496.6,3496.1,2.86031]
[1721200665516,0.65329265,3496.6,3496.2,0.05977455]
[1721200669208,0.6731665,3496.7,3496.2,0.05977455]
[1721200669808,0.90012951,3497.2,3496.2,0.05977455]
[1721200669809,0.90012951,3497.3,3496.5,2.85992]
[1721200670026,2.85927,3497.4,3496.6,2.91937015]
[1721200670339,2.8594,3497.3,3496.6,0.05948015]
[1721200670489,3.0,3497.2,3496.6,0.05948015]
[1721200670690,3.0,3497.2,3496.5,2.85999]
[1721200670941,3.0,3497.2,3496.7,0.05941595]
[1721200671096,3.0,3497.2,3496.6,0.0594718]
[1721200671291,3.962624,3497.2,3496.8,0.05935927]
[1721200671593,3.962624,3497.2,3496.9,0.05929508]
[1721200671790,3.962624,3497.2,3496.6,2.85991]
[1721200671994,3.962624,3497.2,3496.7,0.05940677]
[1721200672996,0.962624,3497.2,3496.7,0.05940677]
[1721200673803,3.0,3497.6,3496.8,2.85969]
[1721200674006,5.85918,3497.5,3496.9,0.05927755]
[1721200674231,2.8591,3497.6,3496.9,0.05927755]
[1721200674971,2.8592,3497.5,3496.9,0.05927755]
[1721200675263,3.43103,3497.5,3496.9,0.05927755]
[1721200675853,2.8593,3497.4,3496.9,0.05927755]
[1721200676070,2.85953,3497.1,3496.4,2.86007]
[1721200676249,2.85953,3497.1,3497.0,0.05920502]
[1721200676444,3.75910951,3497.8,3496.2,2.86021]
[1721200676445,2.85966,3497.0,3496.2,2.86021]
[1721200676658,2.85966,3497.0,3496.3,2.91975596]
[1721200676845,3.431576,3497.0,3496.3,2.91975596]
[1721200678637,2.85967,3496.9,3496.3,2.91975596]
[1721200679597,2.85979,3496.8,3496.3,0.05959596]
[1721200679793,2.85979,3496.8,3496.1,2.86031]
[1721200680138,2.85979,3496.8,3496.2,0.05965182]
[1721200680333,2.85983,3496.7,3496.2,0.05965182]
[1721200680536,2.86016,3496.3,3496.2,0.05965182]
[1721200680872,2.86016,3496.3,3494.8,2.403]
[1721200680873,2.8608,3495.6,3494.9,2.2678]
[1721200681037,2.86038,3496.1,3494.4,9.6478]
[1721200681242,2.86113,3495.2,3494.5,0.05519523]
[1721200682124,2.86113,3495.2,3494.5,2.91681523]
[1721200682476,2.86116,3495.1,3494.5,0.05519523]
[1721200682677,0.572229,3495.1,3494.5,0.05519523]
[1721200682915,2.86155,3494.6,3494.5,0.05519523]
[1721200683072,2.86155,3494.6,3493.9,2.86211]
[1721200683276,2.86155,3494.6,3494.5,0.05519523]
[1721200683477,2.86155,3494.6,3493.9,2.86211]
[1721200683718,2.86155,3494.6,3494.5,0.05519523]
[1721200683935,2.86155,3494.6,3493.9,2.86211]
[1721200683936,3.43386,3494.6,3493.9,2.86211]
[1721200684077,2.86171,3494.5,3493.7,10.24226]
[1721200684278,2.86178,3494.4,3493.7,2.86226]
[1721200685431,2.86195,3494.2,3493.2,10.24268]
[1721200685633,2.86195,3494.2,3493.2,7.38]
[1721200685634,2.86238,3493.6,3493.2,7.38]
[1721200685941,3.0,3494.1,3492.7,7.38]
[1721200686095,2.86303,3492.8,3492.7,7.38]
[1721200686297,3.435611,3492.8,3492.1,4.0]
[1721200686523,2.86303,3492.8,3492.1,4.0]
[1721200686885,2.86319,3492.6,3492.1,4.0]
[1721200687388,2.86319,3492.6,3491.9,7.38]
[1721200687610,2.86319,3492.6,3491.8,2.86383]
[1721200688082,2.86303,3492.8,3491.5,5.26709]
[1721200688289,2.86328,3492.5,3491.7,2.86386]
[1721200688715,2.86328,3492.5,3491.8,2.86385]
[1721200689045,2.86303,3492.8,3491.8,2.86385]
[1721200690574,2.86314,3492.7,3491.8,2.86385]
[1721200691439,2.86322,3492.6,3491.8,2.86385]
[1721200692324,2.86322,3492.6,3491.9,0.05525664]
[1721200693362,3.0,3493.4,3491.9,0.05525664]
[1721200693521,2.86287,3493.0,3491.9,2.91901664]
[1721200693721,2.86287,3493.0,3491.9,2.86376]
[1721200694024,2.86287,3493.0,3492.0,0.0555859]
[1721200694401,2.86246,3493.5,3492.3,2.4876]
[1721200694763,2.86246,3493.5,3492.7,2.86309]
[1721200694965,2.8622,3493.9,3492.6,2.86312]
[1721200695125,2.86221,3493.8,3492.8,2.91808468]
[1721200695326,2.86221,3493.8,3492.6,6.07812]
[1721200695327,2.86213,3493.9,3493.0,2.86279]
[1721200695523,2.86222,3493.8,3492.9,2.91799787]
[1721200695720,2.86238,3493.6,3493.1,0.05492662]
[1721200696026,2.86292,3493.0,3492.2,10.24351]
[1721200696252,2.86292,3493.0,3492.3,4.0]
[1721200696552,2.86313,3492.7,3491.8,12.66412]
[1721200696746,2.86313,3492.7,3491.8,5.28412]
[1721200696976,2.3053,3493.4,3491.8,5.28412]
[1721200696977,2.8632,3492.6,3491.8,5.28412]
[1721200697660,2.86312,3492.7,3492.0,2.86367]
[1721200697865,3.435718,3492.7,3492.0,2.86367]
[1721200698363,2.86312,3492.7,3492.0,2.86367]
[1721200698562,3.0,3493.3,3492.1,2.86359]
[1721200698733,3.0,3493.6,3492.1,2.86359]
[1721200698934,2.86287,3493.0,3492.1,2.86359]
[1721200699136,2.86295,3492.9,3492.1,2.86359]
[1721200700128,3.435516,3492.9,3492.1,2.86359]
[1721200700350,3.435516,3492.9,3491.8,2.4203]
[1721200700351,3.435516,3492.9,3491.9,2.86372]
[1721200700703,3.435516,3492.9,3492.0,2.86368]
[1721200701004,3.435516,3492.9,3491.8,5.2841]
[1721200701005,2.86304,3492.8,3491.8,5.2841]
[1721200701504,2.86317,3492.7,3491.9,2.86376]
[1721200702400,2.86298,3492.9,3492.1,2.86359]
[1721200702610,5.86243,3493.6,3491.8,2.4203]
[1721200702611,2.86304,3492.8,3491.9,2.86372]
[1721200703060,2.86304,3492.8,3492.0,2.86368]
[1721200703267,2.86312,3492.7,3492.0,2.86368]
[1721200703467,3.43572,3492.7,3492.0,2.86368]
[1721200703977,3.43572,3492.7,3491.9,2.86376]
[1721200705661,2.86327,3492.5,3491.7,2.86393]
[1721200706184,0.5726,3492.7,3491.3,7.38]
[1721200706502,0.5726,3492.7,3491.1,3.3649975]
[1721200706662,2.86361,3492.1,3491.3,2.8642]
[1721200706868,2.86344,3492.3,3491.3,2.8642]
[1721200707316,2.86353,3492.2,3491.6,2.86401]
[1721200707796,2.86353,3492.2,3491.7,0.05577816]
[1721200708580,2.8633,3492.5,3491.7,0.05577816]
[1721200708896,2.86336,3492.4,3491.7,0.05577816]
[1721200709380,2.86325,3492.6,3491.7,2.91968816]
[1721200709589,2.86337,3492.4,3491.7,0.05577816]
[1721200709782,2.86337,3492.4,3491.5,2.86403]
[1721200709988,2.86354,3492.2,3491.6,0.05583668]
[1721200710312,2.86361,3492.1,3491.4,2.86417]
[1721200710478,2.86361,3492.1,3491.7,0.05578067]
[1721200710678,2.86361,3492.1,3491.4,2.86417]
[1721200711207,2.86374,3492.0,3491.3,2.412]
[1721200711415,0.572698,3492.1,3491.4,0.0559487]
[1721200711616,2.86369,3492.0,3491.4,0.0559487]
[1721200715326,5.72712,3492.2,3491.4,2.9201087]
[1721200715485,2.86354,3492.2,3491.4,2.9201087]
[1721200716413,2.86338,3492.4,3491.4,2.9201087]
[1721200716622,2.86357,3492.2,3491.4,2.9201087]
[1721200716941,2.86361,3492.1,3491.4,2.9201087]
[1721200718805,2.86344,3492.3,3491.4,2.9201087]
[1721200719010,4.019146,3492.6,3491.4,0.0559487]
[1721200719218,2.86333,3492.5,3491.7,2.86392]
[1721200719502,2.86333,3492.5,3491.8,0.05577656]
[1721200719503,3.8515776,3492.5,3491.8,0.05577656]
[1721200719855,0.9882476,3492.5,3491.8,2.91962656]
[1721200720049,3.8515276,3492.5,3491.8,2.91962656]
[1721200721127,5.86304,3492.8,3491.9,2.86375]
[1721200721317,2.86295,3492.9,3492.2,2.86352]
[1721200721516,2.86331,3492.5,3492.0,0.05567544]
[1721200721735,2.86331,3492.5,3492.3,0.05550747]
[1721200721916,2.86331,3492.5,3491.8,2.86384]
[1721200722111,2.86331,3492.5,3492.4,0.05543976]
[1721200722314,3.435953,3492.5,3491.8,2.86384]
[1721200722550,2.86331,3492.5,3492.4,0.05543976]
[1721200722759,2.86331,3492.5,3491.8,2.86384]
[1721200722961,2.86331,3492.5,3492.4,0.05543725]
[1721200723120,2.86331,3492.5,3491.8,2.86384]
[1721200723319,2.86331,3492.5,3492.4,0.05543725]
[1721200723563,0.572643,3492.5,3491.9,2.86374]
[1721200723867,2.86279,3493.1,3492.2,2.86346]
[1721200724065,2.86287,3493.0,3492.3,0.05548905]
[1721200724362,3.0,3492.9,3492.2,2.86346]
[1721200724562,2.4186,3493.4,3492.3,2.86343]
[1721200724762,3.390778,3493.3,3492.5,5.27525]
[1721200725875,2.86229,3493.7,3492.9,2.86294]
[1721200726022,2.86229,3493.7,3492.9,5.27494]
[1721200727460,2.86229,3493.7,3492.9,2.412]
[1721200727667,2.86229,3493.7,3492.8,2.86302]
[1721200727829,3.664183,3493.6,3492.8,2.86302]
[1721200728157,3.664183,3493.6,3492.9,2.86294]
[1721200728358,3.664183,3493.6,3492.8,2.86297]
[1721200728359,2.86248,3493.5,3492.8,2.86297]
[1721200730261,2.86248,3493.5,3492.9,2.86293]
[1721200732064,3.664163,3493.6,3492.9,2.86293]
[1721200732225,2.86246,3493.5,3492.9,2.86293]
[1721200733133,0.801783,3493.6,3492.9,2.86293]
[1721200733334,5.24705,3493.6,3492.7,2.86305]
[1721200733533,5.24705,3493.6,3492.8,2.86301]
[1721200734858,2.86267,3493.3,3492.5,5.27523]
[1721200735366,2.86267,3493.3,3492.6,2.86317]
[1721200736549,2.86252,3493.5,3492.7,2.8631]
[1721200736879,2.86254,3493.4,3492.7,2.8631]